[Event "Early-Titled-Tuesday-Blitz-November-28-2023"]
[Site "Chess.com"]
[Date "2023.11.28"]
[Round "6"]
[White "Pasmendjambvirgulptipon98"]
[Black "andrzej"]
[Result "1-0"]
[WhiteElo "2251"]
[BlackElo "2448"]
[TimeControl "180+1"]
[EndTime "9:14:07 PST"]
[Termination "Pasmendjambvirgulptipon98 won on time"]

1. Nf3 {[%clk 0:03:00.9]} 1... d5 {[%clk 0:02:59.7]} 2. g3 {[%clk 0:03:01.1]}
2... c5 {[%clk 0:03:00.2]} 3. Bg2 {[%clk 0:03:01.6]} 3... Nc6 {[%clk 0:03:00.9]}
4. d4 {[%clk 0:03:01.7]} 4... Nf6 {[%clk 0:03:00.1]} 5. O-O {[%clk 0:03:01.2]}
5... e6 {[%clk 0:03:00.7]} 6. c4 {[%clk 0:02:59.5]} 6... dxc4 {[%clk 0:03:01.6]}
7. dxc5 {[%clk 0:02:56.1]} 7... Qxd1 {[%clk 0:03:01.7]} 8. Rxd1 {[%clk 0:02:57]}
8... Bxc5 {[%clk 0:03:02.2]} 9. Nbd2 {[%clk 0:02:53.9]} 9... c3 {[%clk
0:03:02.5]} 10. bxc3 {[%clk 0:02:54.2]} 10... O-O {[%clk 0:03:02.1]} 11. Nb3
{[%clk 0:02:51.7]} 11... Be7 {[%clk 0:03:02.3]} 12. Nfd4 {[%clk 0:02:47]} 12...
Nxd4 {[%clk 0:02:59.6]} 13. cxd4 {[%clk 0:02:45.3]} 13... Nd5 {[%clk 0:02:59.5]}
14. Bxd5 {[%clk 0:02:23.8]} 14... exd5 {[%clk 0:02:59.2]} 15. Bf4 {[%clk
0:02:24.3]} 15... g5 {[%clk 0:02:34.9]} 16. Bd2 {[%clk 0:02:15.6]} 16... Bd7
{[%clk 0:02:09.7]} 17. Rac1 {[%clk 0:02:09.8]} 17... Rac8 {[%clk 0:01:59.6]} 18.
Nc5 {[%clk 0:02:01]} 18... Bc6 {[%clk 0:01:49.9]} 19. f3 {[%clk 0:01:56.1]}
19... b6 {[%clk 0:01:40.5]} 20. Nd3 {[%clk 0:01:56.1]} 20... Bb5 {[%clk
0:01:36.7]} 21. Nf2 {[%clk 0:00:57.6]} 21... f6 {[%clk 0:01:21.4]} 22. Kf1
{[%clk 0:00:43.9]} 22... Ba3 {[%clk 0:01:21.1]} 23. Rxc8 {[%clk 0:00:41.4]}
23... Rxc8 {[%clk 0:01:22]} 24. Ng4 {[%clk 0:00:38.3]} 24... Kf7 {[%clk
0:01:02.3]} 25. Rb1 {[%clk 0:00:29.5]} 25... Bc4 {[%clk 0:00:58.4]} 26. Ne3
{[%clk 0:00:20.3]} 26... Ke6 {[%clk 0:00:50.8]} 27. Bb4 {[%clk 0:00:18.3]} 27...
Bxb4 {[%clk 0:00:47.3]} 28. Rxb4 {[%clk 0:00:19.2]} 28... f5 {[%clk 0:00:34.6]}
29. a3 {[%clk 0:00:14.4]} 29... Rc6 {[%clk 0:00:32.1]} 30. Ke1 {[%clk
0:00:13.9]} 30... a5 {[%clk 0:00:24.7]} 31. Rb2 {[%clk 0:00:12.5]} 31... b5
{[%clk 0:00:24.7]} 32. Kd2 {[%clk 0:00:11.8]} 32... Rb6 {[%clk 0:00:21.1]} 33.
h4 {[%clk 0:00:10.7]} 33... h6 {[%clk 0:00:20.7]} 34. Nc2 {[%clk 0:00:08.1]}
34... Kd6 {[%clk 0:00:17.6]} 35. hxg5 {[%clk 0:00:04.9]} 35... hxg5 {[%clk
0:00:17.6]} 36. e3 {[%clk 0:00:03.8]} 36... Rb8 {[%clk 0:00:17.6]} 37. Rb1
{[%clk 0:00:03.7]} 37... Rh8 {[%clk 0:00:16.8]} 38. Kc3 {[%clk 0:00:02.4]} 38...
Rh2 {[%clk 0:00:16.8]} 39. Rg1 {[%clk 0:00:01.8]} 39... Rf2 {[%clk 0:00:12.7]}
40. g4 {[%clk 0:00:02.1]} 40... Rxf3 {[%clk 0:00:09.7]} 41. gxf5 {[%clk
0:00:02.5]} 41... Rxf5 {[%clk 0:00:09.9]} 42. Kd2 {[%clk 0:00:02.8]} 42... Rf2+
{[%clk 0:00:09.4]} 43. Kc3 {[%clk 0:00:02.7]} 43... Rf5 {[%clk 0:00:09.4]} 44.
Kd2 {[%clk 0:00:02.9]} 44... Ke6 {[%clk 0:00:08.9]} 45. Ne1 {[%clk 0:00:02.2]}
45... Kf6 {[%clk 0:00:08.5]} 46. Kc3 {[%clk 0:00:02.6]} 46... Kg6 {[%clk
0:00:08.2]} 47. Nd3 {[%clk 0:00:03.1]} 47... Rf8 {[%clk 0:00:04.7]} 48. Ne5+
{[%clk 0:00:03.5]} 48... Kh6 {[%clk 0:00:03.1]} 49. Ng4+ {[%clk 0:00:03.2]}
49... Kh5 {[%clk 0:00:02.5]} 50. Ne5 {[%clk 0:00:03.6]} 50... g4 {[%clk
0:00:02.2]} 51. Rxg4 {[%clk 0:00:02.9]} 51... Rf2 {[%clk 0:00:01.6]} 52. Rf4
{[%clk 0:00:02.8]} 52... Rxf4 {[%clk 0:00:01.5]} 53. exf4 {[%clk 0:00:03.7]} 1-0

[Event "Early-Titled-Tuesday-Blitz-November-28-2023"]
[Site "Chess.com"]
[Date "2023.11.28"]
[Round "6"]
[White "sumopork"]
[Black "GeorgiosSouleidis"]
[Result "0-1"]
[WhiteElo "2818"]
[BlackElo "2642"]
[TimeControl "180+1"]
[EndTime "9:14:08 PST"]
[Termination "GeorgiosSouleidis won on time"]

1. Nf3 {[%clk 0:03:00.9]} 1... Nf6 {[%clk 0:02:53]} 2. c4 {[%clk 0:03:00.2]}
2... g6 {[%clk 0:02:53.4]} 3. Nc3 {[%clk 0:02:59.5]} 3... Bg7 {[%clk 0:02:53.8]}
4. e4 {[%clk 0:02:59.5]} 4... d6 {[%clk 0:02:54.6]} 5. d4 {[%clk 0:02:59.3]}
5... O-O {[%clk 0:02:55.3]} 6. Be2 {[%clk 0:02:59.5]} 6... e5 {[%clk 0:02:55.7]}
7. Be3 {[%clk 0:02:59.7]} 7... Ng4 {[%clk 0:02:55.6]} 8. Bg5 {[%clk 0:02:57.8]}
8... f6 {[%clk 0:02:56.2]} 9. Bh4 {[%clk 0:02:57.9]} 9... Nc6 {[%clk 0:02:56.4]}
10. d5 {[%clk 0:02:56.3]} 10... Ne7 {[%clk 0:02:56.9]} 11. Nd2 {[%clk
0:02:56.1]} 11... Nh6 {[%clk 0:02:55.2]} 12. O-O {[%clk 0:02:47.6]} 12... g5
{[%clk 0:02:54.8]} 13. Bg3 {[%clk 0:02:47.6]} 13... f5 {[%clk 0:02:53.1]} 14. f3
{[%clk 0:02:47.2]} 14... Ng6 {[%clk 0:02:51.5]} 15. b4 {[%clk 0:02:46]} 15...
Nf4 {[%clk 0:02:50.5]} 16. c5 {[%clk 0:02:41.2]} 16... Nxe2+ {[%clk 0:02:46.9]}
17. Qxe2 {[%clk 0:02:40.3]} 17... f4 {[%clk 0:02:47.8]} 18. Bf2 {[%clk 0:02:39]}
18... g4 {[%clk 0:02:48.7]} 19. fxg4 {[%clk 0:02:30.2]} 19... Nxg4 {[%clk
0:02:45.4]} 20. Nf3 {[%clk 0:02:21.3]} 20... Kh8 {[%clk 0:02:38.8]} 21. Rac1
{[%clk 0:01:59.6]} 21... Bd7 {[%clk 0:02:37.3]} 22. Kh1 {[%clk 0:01:34.9]} 22...
Nxf2+ {[%clk 0:02:33]} 23. Qxf2 {[%clk 0:01:32.3]} 23... Bf6 {[%clk 0:02:32.4]}
24. a4 {[%clk 0:01:29.1]} 24... Rg8 {[%clk 0:02:32.2]} 25. cxd6 {[%clk
0:01:28.7]} 25... cxd6 {[%clk 0:02:32.4]} 26. Nb5 {[%clk 0:01:28.7]} 26... Bg4
{[%clk 0:02:08]} 27. Nc7 {[%clk 0:01:23.6]} 27... Rc8 {[%clk 0:02:05.5]} 28. Ne6
{[%clk 0:01:23.8]} 28... Qd7 {[%clk 0:01:47.3]} 29. Qxa7 {[%clk 0:01:14]} 29...
Bxe6 {[%clk 0:01:31.7]} 30. dxe6 {[%clk 0:01:14.9]} 30... Qxe6 {[%clk
0:01:32.3]} 31. Rxc8 {[%clk 0:00:58.1]} 31... Qxc8 {[%clk 0:01:28.2]} 32. Rg1
{[%clk 0:00:47.7]} 32... Bd8 {[%clk 0:01:21.6]} 33. Qf2 {[%clk 0:00:44.5]} 33...
Qc6 {[%clk 0:01:18.7]} 34. Qd2 {[%clk 0:00:44.1]} 34... Bb6 {[%clk 0:01:13]} 35.
Rc1 {[%clk 0:00:41]} 35... Qd7 {[%clk 0:00:25.2]} 36. Nxe5 {[%clk 0:00:33.1]}
36... Qg7 {[%clk 0:00:25.3]} 37. Nc4 {[%clk 0:00:28.5]} 37... Be3 {[%clk
0:00:19.8]} 38. Nxe3 {[%clk 0:00:27.6]} 38... fxe3 {[%clk 0:00:20.7]} 39. Qe2
{[%clk 0:00:28]} 39... Qd4 {[%clk 0:00:21.1]} 40. Rf1 {[%clk 0:00:26.9]} 40...
Re8 {[%clk 0:00:12.7]} 41. h3 {[%clk 0:00:26.7]} 41... Qxe4 {[%clk 0:00:12.9]}
42. b5 {[%clk 0:00:20.6]} 42... d5 {[%clk 0:00:13.1]} 43. Rf7 {[%clk 0:00:16.7]}
43... Qg6 {[%clk 0:00:05.3]} 44. Rd7 {[%clk 0:00:10.6]} 44... Qe6 {[%clk
0:00:03.5]} 45. Rxb7 {[%clk 0:00:07.9]} 45... d4 {[%clk 0:00:01.3]} 46. Qd3
{[%clk 0:00:04.5]} 46... Re7 {[%clk 0:00:01.4]} 47. Qxd4+ {[%clk 0:00:02.9]}
47... Kg8 {[%clk 0:00:01.7]} 48. Rxe7 {[%clk 0:00:03]} 48... Qxe7 {[%clk
0:00:02.6]} 49. Qg4+ {[%clk 0:00:03.3]} 49... Kf7 {[%clk 0:00:02.9]} 50. Qe2
{[%clk 0:00:03.9]} 50... Qe4 {[%clk 0:00:02.4]} 51. b6 {[%clk 0:00:04]} 51...
Qb1+ {[%clk 0:00:02.5]} 52. Kh2 {[%clk 0:00:04.4]} 52... Qxb6 {[%clk 0:00:03.2]}
53. a5 {[%clk 0:00:03.6]} 53... Qd6+ {[%clk 0:00:03.7]} 54. g3 {[%clk
0:00:03.3]} 54... Qd2 {[%clk 0:00:04.1]} 55. Qxd2 {[%clk 0:00:01.6]} 55... exd2
{[%clk 0:00:05]} 56. a6 {[%clk 0:00:02.3]} 56... d1=Q {[%clk 0:00:05.7]} 57. a7
{[%clk 0:00:03.2]} 57... Qc2+ {[%clk 0:00:06.1]} 0-1

[Event "Early-Titled-Tuesday-Blitz-November-28-2023"]
[Site "Chess.com"]
[Date "2023.11.28"]
[Round "6"]
[White "VincentKeymer"]
[Black "wonderfultime"]
[Result "0-1"]
[WhiteElo "3022"]
[BlackElo "3088"]
[TimeControl "180+1"]
[EndTime "9:14:09 PST"]
[Termination "wonderfultime won on time"]

1. Nf3 {[%clk 0:03:00.9]} 1... Nf6 {[%clk 0:03:00]} 2. c4 {[%clk 0:03:01]} 2...
c6 {[%clk 0:02:59]} 3. Nc3 {[%clk 0:03:01.4]} 3... d5 {[%clk 0:02:59.4]} 4. e3
{[%clk 0:03:02.2]} 4... a6 {[%clk 0:02:59.9]} 5. d4 {[%clk 0:03:02]} 5... Bf5
{[%clk 0:02:59.8]} 6. Nh4 {[%clk 0:02:59.1]} 6... Be4 {[%clk 0:02:59.8]} 7. f3
{[%clk 0:02:53]} 7... Bg6 {[%clk 0:03:00.2]} 8. Qb3 {[%clk 0:02:50.4]} 8... Ra7
{[%clk 0:02:48.4]} 9. Bd2 {[%clk 0:02:48.4]} 9... e6 {[%clk 0:02:47.1]} 10. Nxg6
{[%clk 0:02:43.8]} 10... hxg6 {[%clk 0:02:46.2]} 11. O-O-O {[%clk 0:02:38.1]}
11... dxc4 {[%clk 0:02:06.3]} 12. Bxc4 {[%clk 0:02:37.7]} 12... b5 {[%clk
0:02:07]} 13. Be2 {[%clk 0:02:38.3]} 13... c5 {[%clk 0:02:07.2]} 14. dxc5 {[%clk
0:02:16.7]} 14... Bxc5 {[%clk 0:02:08.1]} 15. Kb1 {[%clk 0:02:02.2]} 15... Rd7
{[%clk 0:01:57.3]} 16. Bc1 {[%clk 0:01:55.3]} 16... O-O {[%clk 0:01:56.1]} 17.
g4 {[%clk 0:01:53.7]} 17... Rxd1 {[%clk 0:01:22.4]} 18. Qxd1 {[%clk 0:01:49.3]}
18... Qb6 {[%clk 0:01:12]} 19. g5 {[%clk 0:01:46.6]} 19... Nfd7 {[%clk
0:01:09.4]} 20. Qg1 {[%clk 0:01:33.9]} 20... Rc8 {[%clk 0:00:56.3]} 21. h4
{[%clk 0:01:31.7]} 21... Nf8 {[%clk 0:00:50.9]} 22. Ne4 {[%clk 0:00:39.7]} 22...
Nbd7 {[%clk 0:00:45.8]} 23. Bd2 {[%clk 0:00:30.9]} 23... Ne5 {[%clk 0:00:31.3]}
24. Qh2 {[%clk 0:00:26.2]} 24... Bd6 {[%clk 0:00:12.9]} 25. Nxd6 {[%clk
0:00:14.5]} 25... Qxd6 {[%clk 0:00:13.8]} 26. Bc3 {[%clk 0:00:15.2]} 26... Nc4
{[%clk 0:00:14.2]} 27. Qxd6 {[%clk 0:00:12.2]} 27... Nxd6 {[%clk 0:00:15.1]} 28.
e4 {[%clk 0:00:12.9]} 28... Nc4 {[%clk 0:00:11.3]} 29. Rd1 {[%clk 0:00:10.6]}
29... Na3+ {[%clk 0:00:07.5]} 30. bxa3 {[%clk 0:00:07.3]} 30... Rxc3 {[%clk
0:00:07.3]} 31. Kb2 {[%clk 0:00:05.9]} 31... Re3 {[%clk 0:00:06.5]} 32. Rd2
{[%clk 0:00:05.3]} 32... f6 {[%clk 0:00:06.8]} 33. Bd1 {[%clk 0:00:03.8]} 33...
Kf7 {[%clk 0:00:06.7]} 34. Rd6 {[%clk 0:00:03.3]} 34... a5 {[%clk 0:00:03.4]}
35. Rb6 {[%clk 0:00:02.8]} 35... Nd7 {[%clk 0:00:03]} 36. Rxb5 {[%clk
0:00:02.9]} 36... Ne5 {[%clk 0:00:03.7]} 37. f4 {[%clk 0:00:01.8]} 37... Nc4+
{[%clk 0:00:03.9]} 38. Kc1 {[%clk 0:00:02.2]} 38... Rc3+ {[%clk 0:00:04.1]} 39.
Bc2 {[%clk 0:00:02.2]} 39... Rxc2+ {[%clk 0:00:04.7]} 40. Kxc2 {[%clk
0:00:02.1]} 40... Nxa3+ {[%clk 0:00:05.3]} 41. Kb3 {[%clk 0:00:03]} 41... Nxb5
{[%clk 0:00:06.2]} 42. Ka4 {[%clk 0:00:03.9]} 42... Nc3+ {[%clk 0:00:06.8]} 43.
Kxa5 {[%clk 0:00:04.3]} 43... Nxe4 {[%clk 0:00:06.8]} 44. Kb6 {[%clk 0:00:03]}
44... e5 {[%clk 0:00:07.3]} 45. fxe5 {[%clk 0:00:03.1]} 45... f5 {[%clk
0:00:04.3]} 46. a4 {[%clk 0:00:03.7]} 46... f4 {[%clk 0:00:03.1]} 47. a5 {[%clk
0:00:04.1]} 47... f3 {[%clk 0:00:03.8]} 48. a6 {[%clk 0:00:04.8]} 48... f2
{[%clk 0:00:04.5]} 49. a7 {[%clk 0:00:05.5]} 49... f1=Q {[%clk 0:00:05.3]} 50.
a8=Q {[%clk 0:00:06.2]} 50... Qb1+ {[%clk 0:00:05.8]} 51. Kc6 {[%clk 0:00:05.5]}
51... Qc2+ {[%clk 0:00:05.8]} 52. Kb6 {[%clk 0:00:02]} 52... Qc5+ {[%clk
0:00:05]} 0-1

[Event "Early-Titled-Tuesday-Blitz-November-28-2023"]
[Site "Chess.com"]
[Date "2023.11.28"]
[Round "6"]
[White "Goffredo_Fofi"]
[Black "Lady_Nika"]
[Result "1-0"]
[WhiteElo "2471"]
[BlackElo "2565"]
[TimeControl "180+1"]
[EndTime "9:14:13 PST"]
[Termination "Goffredo_Fofi won by checkmate"]

1. d4 {[%clk 0:03:00.9]} 1... d5 {[%clk 0:02:59.6]} 2. c3 {[%clk 0:03:00.6]}
2... e6 {[%clk 0:02:59.8]} 3. Bf4 {[%clk 0:03:00.3]} 3... Bd6 {[%clk 0:02:59.1]}
4. e3 {[%clk 0:03:00.7]} 4... f5 {[%clk 0:02:58.9]} 5. Nf3 {[%clk 0:03:00]} 5...
Nf6 {[%clk 0:02:59.2]} 6. c4 {[%clk 0:02:59.8]} 6... c6 {[%clk 0:02:59.1]} 7.
Nc3 {[%clk 0:02:58.4]} 7... O-O {[%clk 0:02:59]} 8. Bd3 {[%clk 0:02:56]} 8...
Ne4 {[%clk 0:02:57.7]} 9. O-O {[%clk 0:02:52.7]} 9... Qe7 {[%clk 0:02:56.8]} 10.
Qc2 {[%clk 0:02:47.9]} 10... Nd7 {[%clk 0:02:56.2]} 11. Ne2 {[%clk 0:02:43]}
11... a6 {[%clk 0:02:53.5]} 12. Rab1 {[%clk 0:02:40.6]} 12... h6 {[%clk
0:02:49.2]} 13. a4 {[%clk 0:02:29.8]} 13... g5 {[%clk 0:02:45.9]} 14. Bxd6
{[%clk 0:02:29.7]} 14... Qxd6 {[%clk 0:02:46.8]} 15. b4 {[%clk 0:02:27.6]} 15...
Rf7 {[%clk 0:02:46.4]} 16. b5 {[%clk 0:02:16.2]} 16... axb5 {[%clk 0:02:45.9]}
17. axb5 {[%clk 0:02:17.1]} 17... g4 {[%clk 0:02:43.5]} 18. Nd2 {[%clk
0:02:12.9]} 18... Nf8 {[%clk 0:02:39.8]} 19. Nf4 {[%clk 0:02:08.3]} 19... h5
{[%clk 0:02:26.3]} 20. bxc6 {[%clk 0:02:00.1]} 20... bxc6 {[%clk 0:02:25.7]} 21.
Rb6 {[%clk 0:01:59.2]} 21... Qc7 {[%clk 0:01:39.1]} 22. Rfb1 {[%clk 0:01:52.1]}
22... Nxd2 {[%clk 0:01:08.4]} 23. Qxd2 {[%clk 0:01:53]} 23... h4 {[%clk
0:01:08.3]} 24. Qc2 {[%clk 0:01:43.2]} 24... g3 {[%clk 0:01:05.8]} 25. hxg3
{[%clk 0:01:22.4]} 25... hxg3 {[%clk 0:01:05.3]} 26. cxd5 {[%clk 0:01:21.9]}
26... gxf2+ {[%clk 0:01:03.8]} 27. Kxf2 {[%clk 0:01:18.2]} 27... cxd5 {[%clk
0:01:02.3]} 28. Rc6 {[%clk 0:01:00.1]} 28... Qd8 {[%clk 0:00:58.4]} 29. Kg1
{[%clk 0:00:54.5]} 29... Rh7 {[%clk 0:00:55.8]} 30. Qf2 {[%clk 0:00:53.2]} 30...
Qg5 {[%clk 0:00:51.2]} 31. Rbc1 {[%clk 0:00:51.9]} 31... Bd7 {[%clk 0:00:51]}
32. Rc7 {[%clk 0:00:49.6]} 32... Ra3 {[%clk 0:00:49.4]} 33. R7c3 {[%clk
0:00:41.4]} 33... Ra4 {[%clk 0:00:34.5]} 34. Be2 {[%clk 0:00:41]} 34... Ra2
{[%clk 0:00:28.5]} 35. R3c2 {[%clk 0:00:39.8]} 35... Ra3 {[%clk 0:00:28.7]} 36.
Rc7 {[%clk 0:00:38.2]} 36... Qh6 {[%clk 0:00:26.8]} 37. Qg3+ {[%clk 0:00:37.7]}
37... Rg7 {[%clk 0:00:26.7]} 38. Qf3 {[%clk 0:00:33.4]} 38... Rh7 {[%clk
0:00:21.2]} 39. Kf2 {[%clk 0:00:29.2]} 39... Rg7 {[%clk 0:00:18.6]} 40. Qh3
{[%clk 0:00:27]} 40... Qxh3 {[%clk 0:00:13.4]} 41. gxh3 {[%clk 0:00:27.5]} 41...
Ra2 {[%clk 0:00:11.9]} 42. R1c2 {[%clk 0:00:22.4]} 42... Ra3 {[%clk 0:00:10.5]}
43. h4 {[%clk 0:00:21.2]} 43... Kf7 {[%clk 0:00:09.4]} 44. Bh5+ {[%clk
0:00:18.7]} 44... Ke7 {[%clk 0:00:09.7]} 45. Bf3 {[%clk 0:00:17.7]} 45... Kd6
{[%clk 0:00:10]} 46. R7c3 {[%clk 0:00:17.6]} 46... Ng6 {[%clk 0:00:10.2]} 47.
Rxa3 {[%clk 0:00:16.9]} 47... Nxh4 {[%clk 0:00:10.1]} 48. Ra6+ {[%clk
0:00:16.3]} 48... Ke7 {[%clk 0:00:10]} 49. Ra7 {[%clk 0:00:16]} 49... Rh7 {[%clk
0:00:07.9]} 50. Rcc7 {[%clk 0:00:14.8]} 50... Kd6 {[%clk 0:00:06.5]} 51. Be2
{[%clk 0:00:08.6]} 51... Rg7 {[%clk 0:00:04.9]} 52. Bb5 {[%clk 0:00:07.6]} 52...
e5 {[%clk 0:00:04.6]} 53. Rxd7+ {[%clk 0:00:07.6]} 53... Rxd7 {[%clk 0:00:02.4]}
54. Rxd7# {[%clk 0:00:08.5]} 1-0

[Event "Early-Titled-Tuesday-Blitz-November-28-2023"]
[Site "Chess.com"]
[Date "2023.11.28"]
[Round "6"]
[White "Bauman_Guy"]
[Black "Fonsofan"]
[Result "0-1"]
[WhiteElo "2882"]
[BlackElo "2750"]
[TimeControl "180+1"]
[EndTime "9:14:16 PST"]
[Termination "Fonsofan won by resignation"]

1. e4 {[%clk 0:03:00.9]} 1... c6 {[%clk 0:02:52.9]} 2. d4 {[%clk 0:03:00.8]}
2... d5 {[%clk 0:02:53.8]} 3. e5 {[%clk 0:03:00.7]} 3... h5 {[%clk 0:02:53.1]}
4. Bd3 {[%clk 0:02:58.9]} 4... g6 {[%clk 0:02:53]} 5. h3 {[%clk 0:02:56.8]} 5...
Nh6 {[%clk 0:02:51.6]} 6. Nf3 {[%clk 0:02:55.9]} 6... Bf5 {[%clk 0:02:51.3]} 7.
Bxh6 {[%clk 0:02:55.5]} 7... Rxh6 {[%clk 0:02:50.8]} 8. Bxf5 {[%clk 0:02:50.3]}
8... gxf5 {[%clk 0:02:51.7]} 9. Nc3 {[%clk 0:02:49.8]} 9... e6 {[%clk 0:02:52]}
10. h4 {[%clk 0:02:49.3]} 10... c5 {[%clk 0:02:51.5]} 11. Ne2 {[%clk 0:02:47.6]}
11... Nc6 {[%clk 0:02:49.7]} 12. c3 {[%clk 0:02:47.6]} 12... Qb6 {[%clk
0:02:48.7]} 13. Qb3 {[%clk 0:02:44.8]} 13... Kd7 {[%clk 0:02:39.2]} 14. Rd1
{[%clk 0:02:39.4]} 14... Qxb3 {[%clk 0:02:37.4]} 15. axb3 {[%clk 0:02:38.9]}
15... cxd4 {[%clk 0:02:38.3]} 16. Nexd4 {[%clk 0:02:35.1]} 16... Rg6 {[%clk
0:02:33.3]} 17. g3 {[%clk 0:02:30.2]} 17... Bh6 {[%clk 0:02:26.8]} 18. b4 {[%clk
0:02:19.8]} 18... Rg4 {[%clk 0:02:25.4]} 19. Kf1 {[%clk 0:02:20]} 19... f4
{[%clk 0:02:17.6]} 20. Rh3 {[%clk 0:02:20]} 20... Rag8 {[%clk 0:02:10.8]} 21.
Ne2 {[%clk 0:01:55.3]} 21... a6 {[%clk 0:01:55.7]} 22. Nh2 {[%clk 0:01:54]}
22... Nxe5 {[%clk 0:01:41.5]} 23. Nxg4 {[%clk 0:01:51.6]} 23... hxg4 {[%clk
0:01:41.5]} 24. Rh1 {[%clk 0:01:50.1]} 24... f3 {[%clk 0:01:40.4]} 25. Nf4
{[%clk 0:01:40.9]} 25... Kd6 {[%clk 0:01:34.5]} 26. h5 {[%clk 0:01:38.3]} 26...
Ke7 {[%clk 0:01:11.1]} 27. b3 {[%clk 0:01:20.9]} 27... Rc8 {[%clk 0:01:09.9]}
28. Nd3 {[%clk 0:01:20.9]} 28... Nd7 {[%clk 0:01:00.8]} 29. Rh4 {[%clk
0:00:59.6]} 29... f5 {[%clk 0:01:00.5]} 30. Re1 {[%clk 0:00:59.7]} 30... Kf6
{[%clk 0:00:55.8]} 31. Nf4 {[%clk 0:00:49.8]} 31... Ne5 {[%clk 0:00:52.5]} 32.
Ng6 {[%clk 0:00:46]} 32... Nd3 {[%clk 0:00:48.4]} 33. Rd1 {[%clk 0:00:46]} 33...
Rxc3 {[%clk 0:00:48.2]} 34. Nf4 {[%clk 0:00:38.2]} 34... Rc1 {[%clk 0:00:18.3]}
35. Rxc1 {[%clk 0:00:34.4]} 35... Nxc1 {[%clk 0:00:19.2]} 36. Rh1 {[%clk
0:00:34.4]} 36... d4 {[%clk 0:00:16]} 37. Ke1 {[%clk 0:00:30.5]} 37... e5 {[%clk
0:00:16.1]} 38. Nd5+ {[%clk 0:00:29.9]} 38... Kf7 {[%clk 0:00:14.6]} 39. b5
{[%clk 0:00:24.7]} 39... axb5 {[%clk 0:00:12.8]} 40. Nb4 {[%clk 0:00:24.9]}
40... Nxb3 {[%clk 0:00:11.3]} 41. Kd1 {[%clk 0:00:23.3]} 41... e4 {[%clk
0:00:10.5]} 42. Kc2 {[%clk 0:00:23.6]} 42... Nc5 {[%clk 0:00:09.5]} 43. Ra1
{[%clk 0:00:22.5]} 43... d3+ {[%clk 0:00:09]} 44. Kd1 {[%clk 0:00:23]} 44... f4
{[%clk 0:00:09.2]} 45. gxf4 {[%clk 0:00:17.6]} 45... g3 {[%clk 0:00:07.7]} 46.
fxg3 {[%clk 0:00:17.3]} 46... Bg7 {[%clk 0:00:06.3]} 47. Rc1 {[%clk 0:00:16.4]}
47... f2 {[%clk 0:00:05.7]} 48. Kd2 {[%clk 0:00:16]} 48... Nb3+ {[%clk
0:00:06.2]} 49. Ke3 {[%clk 0:00:16.4]} 49... Bd4+ {[%clk 0:00:06.2]} 50. Kxe4
{[%clk 0:00:16.4]} 50... Nxc1 {[%clk 0:00:06.9]} 51. Kxd4 {[%clk 0:00:14.1]}
51... f1=Q {[%clk 0:00:07]} 52. Nd5 {[%clk 0:00:15]} 52... Qg1+ {[%clk
0:00:05.3]} 53. Ke4 {[%clk 0:00:15.9]} 53... d2 {[%clk 0:00:05.1]} 54. Ne3
{[%clk 0:00:16.8]} 54... Qxe3+ {[%clk 0:00:04.6]} 55. Kxe3 {[%clk 0:00:17]}
55... d1=Q {[%clk 0:00:05.5]} 56. Ke4 {[%clk 0:00:17.4]} 56... Qd3+ {[%clk
0:00:05.4]} 57. Ke5 {[%clk 0:00:17.5]} 57... Qd7 {[%clk 0:00:05.2]} 58. h6
{[%clk 0:00:17]} 58... Qe8+ {[%clk 0:00:06.1]} 59. Kf5 {[%clk 0:00:17.1]} 59...
b4 {[%clk 0:00:07]} 60. Kg5 {[%clk 0:00:18]} 60... b3 {[%clk 0:00:07.4]} 0-1